bitfinex/quotes_SOLUSD_20240826
["timestamp","ask_amount","ask_price","bid_price","bid_amount"]
[1724665349845,1.56178927,160.1,160.02,45.0]
[1724665350350,15.1875,160.11,160.03,1.24948435]
[1724665351240,15.1875,160.11,160.03,21.24948435]
[1724665351620,1.5617671,160.1,160.04,45.0]
[1724665352432,1.56180658,160.1,160.04,45.0]
[1724665352641,1.56180658,160.1,160.03,20.0]
[1724665353060,1.56180658,160.1,160.01,20.0]
[1724665353349,21.4332,160.11,160.01,20.0]
[1724665353350,21.4332,160.11,160.02,2.81353283]
[1724665353554,1.56209767,160.1,160.01,20.0]
[1724665353712,36.56190281,160.09,159.96,29.98280281]
[1724665354032,36.56190281,160.09,159.92,56.36793025]
[1724665354033,6.5791,160.05,159.97,6.2785854]
[1724665354236,1.56243166,160.04,159.98,1.56400362]
[1724665354434,1.56243166,160.04,159.99,1.56400362]
[1724665354748,1.56243166,160.04,159.97,3.46337889]
[1724665354929,6.5791,160.05,159.98,1.56413786]
[1724665355112,6.5791,160.05,159.99,1.56413786]
[1724665355313,6.5791,160.05,159.98,20.0]
[1724665355551,1.56243645,160.04,159.99,1.56412689]
[1724665355729,1.56243645,160.04,159.96,29.98280281]
[1724665355730,1.56243645,160.04,159.97,20.0]
[1724665356042,1.56250262,160.03,159.98,1.56414054]
[1724665356341,1.56262685,160.04,159.98,1.56429753]
[1724665356568,1.56262685,160.04,159.96,3.46418185]
[1724665356775,6.5791,160.05,159.97,5.02847977]
[1724665356943,1.5625593,160.04,159.98,21.56429792]
[1724665357139,1.5625593,160.04,159.98,20.0]
[1724665357572,1.5625593,160.04,159.97,20.0]
[1724665357778,1.5625593,160.04,159.98,46.56425692]
[1724665357959,1.5625593,160.04,159.98,45.0]
[1724665359181,6.5791,160.05,159.98,45.0]
[1724665359465,6.5791,160.05,159.99,1.56425397]
[1724665359684,8.14150021,160.05,159.99,1.56425397]
[1724665360052,6.5791,160.05,159.98,45.0]
[1724665360254,1.56231662,160.04,159.99,1.56424009]
[1724665360470,1.56231662,160.04,159.98,45.0]
[1724665360647,1.56231662,160.04,159.99,1.56425368]
[1724665360853,1.56231662,160.04,159.98,45.0]
[1724665361046,1.56231662,160.04,159.99,1.564254]
[1724665361279,1.56231662,160.04,159.98,45.0]
[1724665361467,6.5791,160.05,159.99,1.24999864]
[1724665361654,6.5791,160.05,159.99,21.24999864]
[1724665361860,6.5791,160.05,160.0,45.0]
[1724665362082,6.5791,160.05,160.01,1.2497314]
[1724665363156,6.5791,160.05,160.02,1.56397519]
[1724665363366,6.5791,160.05,160.02,1.24970078]
[1724665363958,6.5791,160.05,160.01,3.46330119]
[1724665364163,6.5791,160.05,160.02,1.56395485]
[1724665364364,6.5791,160.05,160.01,3.46330119]
[1724665364598,6.5791,160.05,160.02,1.5639461]
[1724665364895,6.5791,160.05,160.0,74.98280281]
[1724665365389,6.5791,160.05,160.01,1.56394472]
[1724665365567,6.5791,160.05,160.0,45.0]
[1724665365769,6.5791,160.05,160.01,1.56411396]
[1724665366095,6.5791,160.05,159.99,20.0]
[1724665366272,6.5791,160.05,160.0,1.56414865]
[1724665366474,6.5791,160.05,159.99,21.24987112]
[1724665366691,6.5791,160.05,160.0,1.56414464]
[1724665366871,6.5791,160.05,159.99,21.24987112]
[1724665367062,6.5791,160.05,160.0,1.56414431]
[1724665367266,6.5791,160.05,159.99,21.24987112]
[1724665367583,6.5791,160.05,160.0,1.56413938]
[1724665367800,6.5791,160.05,159.99,21.24987112]
[1724665367969,6.5791,160.05,160.0,1.56413379]
[1724665368171,6.5791,160.05,159.99,21.24987112]
[1724665368473,6.5791,160.05,160.0,1.56413932]
[1724665368796,6.5791,160.05,160.0,45.0]
[1724665371079,6.5791,160.05,159.99,20.0]
[1724665371281,6.5791,160.05,159.97,28.4929707]
[1724665371602,6.5791,160.05,159.98,50.02794663]
[1724665371792,6.5791,160.05,159.99,25.02794663]
[1724665371993,6.5791,160.05,160.0,1.56415472]
[1724665372310,1.56231318,160.04,159.99,20.0]
[1724665372504,1.56231318,160.04,160.0,1.56415616]
[1724665372810,1.56231318,160.04,159.99,20.0]
[1724665372993,1.56231318,160.04,160.0,1.56417782]
[1724665373194,1.56231318,160.04,159.99,20.0]
[1724665373915,8.14144083,160.05,159.99,20.0]
[1724665375007,8.14144083,160.05,160.0,1.56417737]
[1724665375199,6.5791,160.05,160.0,1.56417737]
[1724665377116,6.5791,160.05,159.99,20.0]
[1724665377285,6.5791,160.05,159.99,21.24986906]
[1724665377628,6.5791,160.05,159.99,20.0]
[1724665377788,6.5791,160.05,160.0,1.24987074]
[1724665378191,6.5791,160.05,159.99,20.0]
[1724665379716,6.5791,160.05,160.0,45.0]
[1724665380307,6.5791,160.05,160.01,1.24980148]
[1724665380613,6.5791,160.05,160.0,46.24979394]
[1724665382214,6.5791,160.05,160.0,58.26044071]
[1724665382992,6.5791,160.05,160.02,12.01064677]
[1724665383191,16.0997,160.08,160.03,45.0]
[1724665383805,16.0997,160.08,160.04,3.46305882]
[1724665384123,16.0997,160.08,160.04,1.56388652]
[1724665384329,16.0997,160.08,160.05,1.56388652]
[1724665384505,16.0997,160.08,160.04,13.26018524]
[1724665385325,16.0997,160.08,160.04,12.01064677]
[1724665385541,17.66149824,160.08,160.03,45.0]
[1724665385828,1.56179824,160.07,159.99,32.01064677]
[1724665386046,1.56179824,160.07,160.0,45.0]
[1724665386331,16.0997,160.08,160.01,33.26036065]
[1724665386724,16.0997,160.08,160.02,1.2496826]
[1724665387047,1.56213918,160.07,160.01,32.01064677]
[1724665387915,16.0997,160.08,160.01,33.26035697]
[1724665388524,1.56214123,160.07,160.01,32.01064677]
[1724665389030,16.0997,160.08,160.01,32.01064677]
[1724665391253,13.57278814,160.07,159.95,16.3385]
[1724665391426,13.57278814,160.07,159.97,12.01064677]
[1724665391627,13.57278814,160.07,159.98,20.0]
[1724665394542,403.87278814,160.07,159.98,20.0]
[1724665401357,6.2746,160.06,159.98,20.0]
[1724665401656,1.5624089,160.05,159.98,20.0]
[1724665401849,1.56240869,160.04,159.98,20.0]
[1724665402568,6.5884,160.02,159.95,7.82115026]
[1724665402768,6.5884,160.02,159.92,8.97292362]
[1724665402769,8.15103345,160.02,159.94,12.01064677]
[1724665402936,1.56263345,160.01,159.94,12.01064677]
[1724665404158,1.56263345,160.01,159.95,20.0]
[1724665406464,1.56263345,160.01,159.89,18.38512424]
[1724665406465,13.57328022,160.01,159.9,7.82310821]
[1724665406641,13.57328022,160.01,159.89,18.38512424]
[1724665406642,403.87328022,160.01,159.91,32.01064677]
[1724665407157,408.56024677,160.01,159.93,12.01064677]
[1724665407345,396.5496,160.01,159.94,1.25028372]
[1724665407546,390.3,160.01,159.94,1.25028372]
[1724665408575,390.3,160.01,159.95,12.01064677]
[1724665408766,390.3,160.01,159.96,1.25017629]
[1724665409074,390.3,160.01,159.97,12.01064677]
[1724665409280,6.5884,160.02,159.98,46.25001356]
[1724665410473,6.5884,160.02,159.98,45.0]
[1724665412563,6.5884,160.02,159.99,1.24996721]
[1724665412752,6.5884,160.02,159.98,45.0]
[1724665413075,6.5884,160.02,159.98,57.01064677]
[1724665413449,6.5884,160.02,159.98,45.0]
[1724665416977,6.5884,160.02,159.99,12.01064677]
[1724665422254,419.478,160.07,160.0,1.24992727]
[1724665422453,413.2307,160.07,160.03,12.01064677]
[1724665422862,413.2307,160.07,160.01,12.01064677]
[1724665424282,22.9307,160.07,160.01,12.01064677]
[1724665424990,1.56211012,160.06,159.98,45.0]
[1724665425291,19.82045689,160.06,159.99,20.0]
[1724665425452,19.82045689,160.06,159.96,15.4829]
[1724665425657,19.82045689,160.06,159.97,1.25146887]
[1724665426378,19.82045689,160.06,159.96,27.49354677]
[1724665426586,19.82045689,160.06,159.97,1.25146242]
[1724665426785,19.82045689,160.06,159.97,46.25146242]
[1724665426950,19.82045689,160.06,159.97,45.0]
[1724665427377,7.80981012,160.06,159.97,45.0]
[1724665427574,7.80981012,160.06,159.98,22.50140762]
[1724665427575,6.2477,160.06,159.98,22.50140762]
[1724665427760,22.9307,160.07,159.99,1.24990456]
[1724665427761,34.94134677,160.07,159.99,1.24990456]
[1724665428761,22.9307,160.07,160.01,12.01064677]
[1724665431485,24.49288355,160.07,160.01,12.01064677]
[1724665431695,22.9307,160.07,160.01,12.01064677]
[1724665433606,22.9307,160.07,159.99,45.0]
[1724665433607,1.56217973,160.06,159.99,57.01064677]
[1724665436493,1.56217973,160.06,160.0,1.25132401]
[1724665436691,1.56217973,160.06,159.99,57.01064677]
[1724665437015,7.80987973,160.06,159.98,20.0]
[1724665437201,6.2481,160.05,159.97,20.0]
[1724665437391,22.9307,160.07,159.97,20.0]
[1724665437392,13.57312966,160.04,159.97,20.0]
[1724665437579,13.57312966,160.04,159.92,28.60094677]
[1724665437580,15.7322,160.01,159.92,28.60094677]
[1724665437790,1.56293153,160.0,159.92,12.01064677]
[1724665438982,7.81313153,160.0,159.92,12.01064677]
[1724665439202,13.5735783,160.0,159.88,16.5903]
[1724665439413,13.5735783,160.0,159.9,12.01064677]
[1724665439709,6.2511,159.97,159.9,12.01064677]
[1724665439913,1.56319058,159.96,159.9,12.01064677]
[1724665440209,7.81469058,159.96,159.9,12.01064677]
[1724665440511,6.2511,159.97,159.9,12.01064677]
[1724665440723,6.2511,159.97,159.91,20.0]
[1724665440724,1.56315798,159.96,159.91,20.0]
[1724665442013,12.01064677,160.0,159.91,20.0]
[1724665442014,7.81425638,159.97,159.91,20.0]
[1724665442588,14.01835638,159.97,159.91,20.0]
[1724665443016,1.56315854,159.96,159.91,20.0]
[1724665443184,1.56325934,159.95,159.88,12.01064677]
[1724665443389,1.56325934,159.95,159.89,65.0]
[1724665444318,1.56325934,159.95,159.86,12.01064677]
[1724665444319,21.5819,159.94,159.86,12.01064677]
[1724665444527,1.56348027,159.93,159.86,12.01064677]
[1724665445320,1.56352126,159.92,159.86,12.01064677]
[1724665445700,1.56352126,159.92,159.87,20.0]
[1724665446618,6.2421,159.91,159.85,20.0]
[1724665447636,1.56371709,159.9,159.85,20.0]
[1724665447924,1.56371709,159.9,159.81,0.8218083]
[1724665447925,1.56371709,159.89,159.83,12.01064677]
[1724665448124,1.56371709,159.89,159.81,0.8218083]
[1724665448415,1.56371709,159.89,159.82,12.01064677]
[1724665449512,6.2421,159.91,159.86,12.01064677]
[1724665449716,6.2421,159.91,159.88,12.01064677]
[1724665450292,6.2421,159.91,159.84,12.01064677]
[1724665450516,1.56384029,159.9,159.85,20.0]
[1724665450846,1.56383975,159.89,159.85,20.0]
[1724665451150,1.56383975,159.89,159.82,12.01064677]
[1724665451436,15.9783,159.88,159.82,12.01064677]
[1724665451645,1.56410296,159.87,159.82,12.01064677]
[1724665452450,1.56410296,159.87,159.81,0.8218083]
[1724665452641,1.56410296,159.87,159.81,12.83245507]
[1724665452940,1.56410296,159.87,159.82,20.0]
[1724665456054,1.56410296,159.87,159.81,12.83245507]
[1724665456222,1.56410296,159.87,159.81,0.8218083]
[1724665456423,1.56410296,159.87,159.81,20.8218083]
[1724665457954,17.54248213,159.88,159.84,12.01064677]
[1724665458156,15.9783,159.88,159.84,12.01064677]
[1724665460155,6.2421,159.91,159.86,12.01064677]
[1724665461455,1.56367436,159.9,159.81,20.8218083]
[1724665461635,1.56386821,159.89,159.84,12.01064677]
[1724665461959,1.56386821,159.89,159.85,20.0]
[1724665462318,6.2421,159.91,159.85,20.0]
[1724665462545,6.2421,159.91,159.88,12.01064677]
[1724665462717,15.6317,159.92,159.88,12.01064677]
[1724665462922,6.4399,159.95,159.85,20.0]
[1724665462923,6.4399,159.95,159.9,12.01064677]
[1724665463156,6.4399,159.95,159.92,12.01064677]
[1724665464022,1.5631414,159.96,159.86,2.55958454]
[1724665464337,1.5631414,159.96,159.91,12.01064677]
[1724665464536,15.0141,159.97,159.91,12.01064677]
[1724665464754,15.0141,160.01,159.95,12.01064677]
[1724665465171,15.0141,160.01,159.96,1.25017486]
[1724665465341,15.0141,160.01,159.97,12.01064677]
[1724665465521,6.1072,160.02,159.98,45.0]
[1724665465863,6.1072,160.02,159.99,12.01064677]
[1724665466162,21.52450612,160.05,159.99,12.01064677]
[1724665466163,15.0141,160.05,159.99,13.26057243]
[1724665466327,15.0141,160.05,159.99,12.01064677]
[1724665466756,16.57643104,160.05,159.99,12.01064677]
[1724665467146,15.0141,160.05,159.99,12.01064677]
[1724665467453,15.0141,160.05,159.99,13.26050239]
[1724665467846,6.1072,160.06,160.01,12.01064677]
[1724665468036,6.1072,160.06,160.01,30.012624]
[1724665468456,6.1072,160.06,159.99,30.012624]
[1724665468628,1.5621866,160.05,160.0,20.0]
[1724665468834,6.1072,160.06,160.0,20.0]
[1724665468835,7.66950097,160.06,160.0,20.0]
[1724665469755,6.1072,160.06,160.0,20.0]
[1724665474560,1.56218306,160.05,160.0,20.0]
[1724665475156,7.66949889,160.06,160.0,20.0]
[1724665476546,7.66949889,160.06,159.99,20.0]
[1724665479254,1.56233464,160.05,159.99,20.0]
[1724665479459,6.1072,160.06,159.99,21.24992362]
[1724665480433,6.1072,160.06,159.99,20.0]
[1724665480634,1.56240632,160.05,159.99,20.0]
[1724665480852,1.56240843,160.04,159.99,20.0]
[1724665481242,7.81080843,160.04,159.95,30.012624]
[1724665481572,6.2484,160.04,159.96,46.25008894]
[1724665482547,6.1072,160.06,159.97,30.012624]
[1724665482749,6.1072,160.06,159.98,46.24992027]
[1724665482963,6.1072,160.06,159.99,1.24992027]
[1724665483261,12.3549,160.06,159.99,31.26254427]
[1724665483433,6.1072,160.06,159.99,31.26254427]
[1724665484959,6.1072,160.06,159.99,30.012624]
[1724665485336,6.1072,160.06,160.0,45.0]
[1724665485539,1.56229455,160.05,159.99,30.012624]
[1724665485739,1.56229455,160.05,159.98,45.0]
[1724665487972,1.56229455,160.05,159.99,12.00972174]
[1724665489078,6.1072,160.06,159.99,12.00972174]
[1724665489876,1.56233197,160.05,159.99,12.00972174]
[1724665490966,6.1072,160.06,160.0,1.24986406]
[1724665491168,6.1072,160.06,160.0,21.24986406]
[1724665492860,6.1072,160.06,160.0,20.0]
[1724665495169,1.56218242,160.05,160.0,20.0]
[1724665495385,1.56218242,160.05,159.98,45.0]
[1724665495386,1.56233698,160.04,159.99,20.0]
[1724665496185,12.3548,160.06,159.99,20.0]
[1724665496372,12.3548,160.06,159.92,63.92108696]
[1724665496373,1.56235533,160.05,159.97,12.00972174]
[1724665496582,1.56244502,160.04,159.98,20.0]
[1724665497882,1.5624445,160.05,159.98,20.0]
[1724665498079,1.5624733,160.04,159.98,20.0]
[1724665498882,18.86407783,160.06,159.98,20.0]
[1724665499209,6.2485,160.04,159.96,12.00972174]
[1724665499498,13.5722434,160.05,159.92,27.89192174]
[1724665499499,15.0955,160.03,159.95,12.00972174]
[1724665499790,15.0955,160.03,159.96,1.25011094]
[1724665499961,15.0955,160.03,159.97,12.00972174]
[1724665500567,15.0955,160.03,159.98,1.25001024]
[1724665501087,15.0955,160.03,159.99,12.00972174]
[1724665501972,12.61647783,160.06,160.01,12.00972174]
[1724665502776,14.17861792,160.06,160.01,12.00972174]
[1724665503880,14.17861792,160.06,159.99,12.00972174]
[1724665504079,14.17861792,160.06,160.0,65.0]
[1724665504578,14.17861792,160.06,160.01,12.00972174]
[1724665504775,12.61647783,160.06,160.01,12.00972174]
[1724665506480,6.1072,160.06,160.03,12.00972174]
[1724665506725,15.7376,160.07,160.03,12.00972174]
[1724665508302,6.1024,160.1,160.04,1.24958532]
[1724665508479,7.66424457,160.1,160.05,1.56384046]
[1724665508678,7.66424457,160.1,160.04,3.45818598]
[1724665508978,7.66424457,160.1,160.01,12.00972174]
[1724665509174,7.66424457,160.1,160.02,25.02371029]
[1724665509373,6.2465,160.09,160.02,20.0]
[1724665509585,6.2465,160.09,160.03,1.56402609]
[1724665509792,6.2465,160.09,160.02,20.0]
[1724665509973,1.56209232,160.08,160.03,1.56397259]
[1724665510178,6.2465,160.09,160.02,20.0]
[1724665510468,6.2465,160.09,160.03,6.27467239]
[1724665510695,402.6485,160.1,160.04,1.5640664]
[1724665510891,396.4024,160.1,160.05,1.5640664]
[1724665511081,396.4024,160.1,160.06,1.56393696]
[1724665511282,396.4024,160.1,160.03,57.00972174]
[1724665511601,396.4024,160.1,160.04,5.02321191]
[1724665511899,396.4024,160.1,160.05,1.56390503]
[1724665512202,396.4024,160.1,160.06,1.56390503]
[1724665512503,396.4024,160.1,160.03,57.00972174]
[1724665512712,396.4024,160.1,160.04,5.02335198]
[1724665512887,396.4024,160.1,160.05,1.56390491]
[1724665513083,6.247,160.08,160.02,20.0]
[1724665513304,6.247,160.08,160.03,1.56403278]
[1724665513305,1.56213912,160.07,160.03,1.56403278]
[1724665513482,1.56213912,160.07,160.0,7.27901723]
[1724665513800,13.57186086,160.07,160.01,5.02445827]
[1724665514006,13.57186086,160.07,160.02,1.56412538]
[1724665514306,18.25882174,160.03,159.98,10.74082876]
[1724665514603,18.25882174,160.03,159.89,20.0]
[1724665514604,1.56273297,160.02,159.99,1.56453956]
[1724665514799,1.5627284,160.01,159.94,7.28338838]
[1724665515001,1.5627284,160.01,159.95,12.31147034]
[1724665515172,1.5627284,160.01,159.96,6.27975202]
[1724665515377,1.5627284,160.01,159.97,1.56463254]
[1724665515596,1.5627284,160.01,159.89,15.1212]
[1724665515597,16.4943,160.0,159.95,1.2517671]
[1724665515896,16.4943,160.0,159.96,1.56482145]
[1724665516101,16.4943,160.0,159.94,6.03575075]
[1724665516305,16.4943,160.0,159.95,5.02993395]
[1724665516486,16.4943,160.0,159.96,1.56476661]
[1724665516704,16.4943,160.0,159.97,1.56476661]
[1724665516879,16.4943,160.0,159.95,12.00972174]
[1724665517079,16.4943,160.0,159.96,3.46390362]
[1724665517277,16.4943,160.0,159.96,1.56462152]
[1724665517492,16.4943,160.0,159.97,1.56462152]
[1724665517692,1.56259849,159.99,159.94,23.46458842]
[1724665517887,18.05712155,160.0,159.95,5.02935083]
[1724665518096,18.05712155,160.0,159.94,20.0]
[1724665518304,18.05712155,160.0,159.96,1.56473636]
[1724665518604,18.05712155,160.0,159.94,20.0]
[1724665518796,18.05712155,160.0,159.95,1.5647578]
[1724665519175,18.05712155,160.0,159.94,20.0]
[1724665519382,18.05712155,160.0,159.95,1.56482828]
[1724665519696,16.4943,160.0,159.94,20.0]
[1724665519890,16.4943,160.0,159.95,1.56482697]
[1724665520083,16.4943,160.0,159.94,20.0]
[1724665520285,16.4943,160.0,159.95,1.56482876]
[1724665520484,16.4943,160.0,159.94,20.0]
[1724665520891,1.56294918,159.99,159.94,20.0]
[1724665521734,1.56295155,159.98,159.92,20.0]
[1724665521904,22.7443,160.0,159.93,1.5648514]
[1724665522111,22.7443,160.0,159.92,21.25043759]
[1724665522112,22.7443,160.0,159.94,1.5648514]
[1724665522294,22.7443,160.0,159.92,21.25043759]
[1724665522495,1.56304458,159.99,159.93,1.56485478]
[1724665522716,22.7443,160.0,159.92,20.0]
[1724665522717,1.56305678,159.98,159.92,20.0]
[1724665522881,22.7443,160.0,159.93,1.5648633]
[1724665523090,22.7443,160.0,159.92,21.25044976]
[1724665523402,22.7443,160.0,159.93,1.56486091]
[1724665523597,22.7443,160.0,159.92,21.25044976]
[1724665523786,1.56304365,159.99,159.93,1.56485304]
[1724665523985,1.56305196,159.98,159.92,20.0]
[1724665524282,1.5630597,159.99,159.93,1.56486288]
[1724665524490,7.63075135,159.98,159.92,20.0]
[1724665524694,7.63075135,159.98,159.93,1.56486288]
[1724665524987,13.88165135,159.98,159.9,6.03670851]
[1724665525195,12.3186,159.98,159.91,1.56490854]
[1724665525408,12.3186,159.98,159.92,1.56490854]
[1724665525617,12.3186,159.98,159.9,1.25059259]
[1724665525815,6.0677,159.98,159.91,13.57462962]
[1724665526124,6.0677,159.98,159.92,2.8153821]
[1724665526323,6.0677,159.98,159.93,1.25040667]
[1724665526622,390.3,159.99,159.95,12.00972174]
[1724665528421,1.56272554,159.98,159.92,77.00972174]
[1724665528614,16.4943,160.0,159.93,2.81504436]
[1724665528821,16.4943,160.0,159.94,13.57446905]
[1724665529023,6.0677,160.02,159.96,12.00972174]
[1724665530017,6.0677,160.02,159.97,1.25011407]
[1724665531729,6.0677,160.02,159.96,12.00972174]
[1724665532114,1.56260644,160.01,159.94,12.00972174]
[1724665532315,1.56260644,160.01,159.95,21.56464939]
[1724665532628,1.56260644,160.01,159.95,20.0]
[1724665533613,1.56260644,160.01,159.93,32.00972174]
[1724665533816,1.56260644,160.01,159.94,1.56473072]
[1724665534018,18.07742174,160.02,159.95,1.25035058]
[1724665534219,6.0677,160.02,159.95,13.26007232]
[1724665534418,6.0677,160.02,159.96,1.25010401]
[1724665534628,6.0677,160.02,159.95,12.00972174]
[1724665535522,396.81535615,160.04,159.99,12.00972174]
[1724665535729,390.3,160.04,160.0,1.24984274]
[1724665536305,390.3,160.04,159.99,1.24985271]
[1724665536504,1.56238965,160.03,159.96,30.02053425]
[1724665536746,1.56250307,160.03,159.97,21.56433997]
[1724665537031,1.56250307,160.03,159.97,20.0]
[1724665537208,1.56250307,160.03,159.95,20.0]
[1724665537408,1.56250307,160.03,159.96,46.56444817]
[1724665537607,1.56250307,160.03,159.97,21.56444817]
[1724665537811,1.56250307,160.03,159.97,20.0]
[1724665539838,7.81140307,160.03,159.97,20.0]
[1724665540010,6.2492,160.02,159.92,45.67903425]
[1724665540208,1.56286613,160.01,159.93,46.56470296]
[1724665540438,1.56286613,160.01,159.94,1.56470296]
[1724665540636,1.56286613,160.01,159.92,15.6585]
[1724665540815,1.56286613,160.01,159.93,1.56472789]
[1724665541145,1.56286613,160.01,159.94,1.56472789]
[1724665541343,6.3126,160.0,159.94,1.5647315]
[1724665541647,6.3126,160.0,159.91,32.07240592]
[1724665541648,1.56293167,159.99,159.91,32.07240592]
[1724665541943,1.56293167,159.99,159.92,46.56475003]
[1724665542108,6.3126,160.0,159.93,21.56475003]
[1724665542305,6.3126,160.0,159.94,1.56475003]
[1724665542530,6.3126,160.0,159.93,21.2503403]
[1724665542736,6.3126,160.0,159.94,46.56473183]
[1724665542934,6.3126,160.0,159.94,45.0]
[1724665544053,6.3126,160.0,159.95,1.25020153]
[1724665544267,6.3126,160.0,159.94,45.0]
[1724665544409,6.3126,160.0,159.93,20.0]
[1724665544611,6.3126,160.0,159.94,1.56471951]
[1724665544912,6.3126,160.0,159.93,20.0]
[1724665545113,6.3126,160.0,159.94,1.56471951]
[1724665545422,6.3126,160.0,159.93,20.0]
[1724665545610,6.3126,160.0,159.94,1.56472116]
[1724665545806,390.3,160.03,159.94,45.10003425]
[1724665546044,390.3,160.03,159.96,30.02053425]
[1724665546232,16.2215,160.05,159.97,21.56465607]
[1724665546437,16.2215,160.05,159.97,20.0]
[1724665546625,1.56249462,160.04,159.97,20.0]
[1724665548135,1.56249462,160.04,159.96,20.0]
[1724665548339,1.56249462,160.04,159.95,20.0]
[1724665548340,7.81089462,160.04,159.95,20.0]
[1724665548536,1.56249462,160.04,159.96,1.56458537]
[1724665548744,1.56249462,160.04,159.96,30.02053425]
[1724665548929,1.56249462,160.04,159.97,20.0]
[1724665549124,22.73587019,160.05,159.98,1.24996644]
[1724665549641,6.3184,160.06,159.99,1.24988715]
[1724665549844,7.88070068,160.06,159.98,75.02053425]
[1724665551553,14.12830068,160.06,159.97,20.0]
[1724665551850,6.2481,160.05,159.97,20.0]
[1724665552023,1.56259499,160.04,159.95,20.0]
[1724665552222,1.56259499,160.04,159.96,46.56449331]
[1724665552428,1.56259499,160.04,159.97,21.56449331]
[1724665552741,1.56259499,160.04,159.97,20.0]
[1724665553322,1.56259499,160.04,159.98,1.56441783]
[1724665553523,1.56259499,160.04,159.97,20.0]
[1724665553723,1.56259499,160.04,159.98,1.56441783]
[1724665553939,1.56259499,160.04,159.97,20.0]
[1724665555051,7.81109499,160.04,159.97,20.0]
[1724665555231,7.81109499,160.04,159.92,30.02053425]
[1724665555232,6.2492,160.02,159.92,30.02053425]
[1724665555440,1.56286693,160.01,159.93,21.56471031]
[1724665555750,6.1246,160.0,159.94,1.56471031]
[1724665555929,1.56293916,159.99,159.91,6.03653878]
[1724665556124,1.56293916,159.99,159.92,1.564846]
[1724665556352,1.56293916,159.99,159.93,1.564846]
[1724665556532,6.1246,160.0,159.94,2.8151969]
[1724665556735,6.1246,160.0,159.91,6.03653878]
[1724665556933,6.1246,160.0,159.92,1.56480336]
[1724665557133,1.56289864,159.99,159.93,1.56480336]
[1724665557354,1.56289864,159.99,159.94,1.56480336]
[1724665557648,6.1246,160.0,159.92,45.0]
[1724665557649,1.56293807,159.98,159.93,20.0]
[1724665557831,1.56293807,159.98,159.95,1.56480658]
[1724665558035,402.6749,160.0,159.89,28.85267727]
[1724665558232,402.6749,160.0,159.9,8.85265441]
[1724665558427,402.6749,160.0,159.91,21.56480658]
[1724665558738,402.6749,160.0,159.92,22.81529593]
[1724665558941,396.4246,160.0,159.93,1.56480658]
[1724665559135,396.4246,160.0,159.94,1.56480658]
[1724665559338,1.56282103,159.99,159.95,1.56480658]
[1724665559539,1.56282103,159.99,159.91,20.0]
[1724665559849,1.56291173,159.99,159.92,52.60146907]
[1724665560154,1.56291173,159.99,159.93,1.56484421]
[1724665560329,18.88944423,160.0,159.91,20.0]
[1724665560528,18.88944423,160.0,159.88,30.02053425]
[1724665560529,6.2503,159.99,159.92,1.56504773]
[1724665560739,12.63944423,160.0,159.89,26.03753662]
[1724665560740,7.81398466,159.98,159.89,20.0]
[1724665560949,7.81398466,159.98,159.9,7.60232389]
[1724665561147,7.81398466,159.98,159.91,1.5650002]
[1724665561448,18.88944423,160.0,159.92,1.5650002]
[1724665561766,12.63944423,160.0,159.93,2.81539436]
[1724665561930,6.1246,160.0,159.94,1.5650002]
[1724665562126,412.1772,160.03,159.95,2.8151635]
[1724665562127,405.9283,160.03,159.95,2.8151635]
[1724665562348,412.44386093,160.03,159.96,2.81510822]
[1724665562656,6.3269,160.04,159.98,30.02053425]
[1724665562829,6.3269,160.04,159.99,2.81486479]
[1724665563038,6.3269,160.04,160.0,1.564436]
[1724665563239,396.80192889,160.06,160.0,30.02053425]
[1724665563544,15.5389,160.07,160.01,2.81401127]
[1724665563744,390.3,160.12,160.02,31.27014275]
[1724665563745,15.024,160.11,160.02,31.27014275]
[1724665564049,15.024,160.11,160.03,20.0]
[1724665564249,15.024,160.11,160.04,1.24948528]
[1724665564450,1.56185904,160.1,160.03,20.0]
[1724665564648,8.07401167,160.1,160.03,20.0]
[1724665565044,14.32011167,160.1,160.02,20.0]
[1724665565748,14.32011167,160.1,160.01,45.0]
[1724665566782,14.32011167,160.1,160.0,16.5249]
[1724665566955,396.5465,160.09,160.01,22.81396783]